bitfinex-derivatives/quotes_BTCF0:USTF0_20250911
["timestamp","ask_amount","ask_price","bid_price","bid_amount"]
[1757585999144,1.33010523,114040.0,114030.0,0.14000523]
[1757585999344,1.46711046,114040.0,114030.0,0.14000523]
[1757585999846,0.67099046,114040.0,114030.0,0.14000523]
[1757586000152,1.46711046,114040.0,114030.0,0.14000523]
[1757586000650,1.46711046,114040.0,114030.0,0.39000523]
[1757586000651,1.33014523,114040.0,114030.0,0.39000523]
[1757586001552,1.46715046,114040.0,114030.0,0.39000523]
[1757586002052,1.33014523,114040.0,114030.0,0.39000523]
[1757586002554,1.19314,114040.0,114030.0,0.39000523]
[1757586002755,1.33014523,114040.0,114030.0,0.39000523]
[1757586005357,1.33014523,114040.0,114030.0,0.46818124]
[1757586011561,0.39698,114040.0,114030.0,0.46818124]
[1757586011759,1.1931,114040.0,114030.0,0.30585384]
[1757586011957,1.1931,114040.0,114030.0,0.22767783]
[1757586012162,1.1931,114040.0,114030.0,0.47767783]
[1757586012358,1.1931,114040.0,114030.0,0.72492609]
[1757586012557,1.1931,114040.0,114030.0,0.58792086]
[1757586012758,1.1931,114040.0,114030.0,0.47767783]
[1757586012957,1.1931,114040.0,114030.0,0.58791323]
[1757586014260,1.33010523,114040.0,114030.0,0.33791323]
[1757586015067,1.33010523,114040.0,114030.0,0.003]
[1757586015261,1.33010523,114040.0,114030.0,0.14000523]
[1757586015967,1.33010523,114040.0,114030.0,0.2502408]
[1757586016365,1.33010523,114040.0,114030.0,0.14000523]
[1757586017761,1.1931,114040.0,114030.0,0.003]
[1757586018063,1.33010523,114040.0,114030.0,0.14000523]
[1757586018556,1.33010523,114040.0,114030.0,0.73000523]
[1757586018757,1.1931,114040.0,114030.0,0.73000523]
[1757586019768,1.1931,114040.0,114030.0,0.593]
[1757586020060,1.33010523,114040.0,114030.0,0.73000523]
[1757586020266,1.33010523,114040.0,114030.0,0.84022351]
[1757586020468,1.1931,114040.0,114030.0,0.70321828]
[1757586020764,1.33010523,114040.0,114030.0,0.84022351]
[1757586021164,1.33010523,114040.0,114030.0,0.73000523]
[1757586021364,1.1931,114040.0,114030.0,0.84023296]
[1757586022070,1.1931,114040.0,114030.0,0.70322773]
[1757586022365,1.1931,114040.0,114030.0,0.84023296]
[1757586022872,1.33010523,114040.0,114030.0,0.84023296]
[1757586024168,1.1931,114040.0,114030.0,0.84023296]
[1757586024467,1.1931,114040.0,114030.0,0.79459457]
[1757586024765,1.1931,114040.0,114030.0,0.20459457]
[1757586026059,1.1931,114040.0,114030.0,0.29226717]
[1757586026667,1.1931,114040.0,114030.0,0.18203944]
[1757586027461,1.1931,114040.0,114030.0,0.33989063]
[1757586028262,1.1931,114040.0,114030.0,0.18203944]
[1757586030066,1.37583368,114040.0,114030.0,0.11330514]
[1757586030268,1.62583368,114040.0,114030.0,0.11330514]
[1757586034979,1.62583368,114040.0,114030.0,0.19211275]
[1757586035272,1.62583368,114040.0,114030.0,0.08180761]
[1757586035673,1.62583368,114040.0,114030.0,0.003]
[1757586036066,1.62583368,114040.0,114030.0,0.11330514]
[1757586038470,1.62583368,114040.0,114030.0,0.0817927]
[1757586039378,1.37583368,114040.0,114030.0,0.0817927]
[1757586039573,1.37583368,114040.0,114030.0,0.003]
[1757586039777,1.37583368,114040.0,114030.0,0.11330514]
[1757586040378,1.37583368,114040.0,114030.0,0.08178315]
[1757586047880,1.37583368,114040.0,114030.0,0.08173567]
[1757586050988,1.37583368,114040.0,114030.0,0.11330514]
[1757586051188,1.37583368,114040.0,114030.0,0.19204463]
[1757586051388,1.37583368,114040.0,114030.0,0.08173949]
[1757586051690,1.37583368,114040.0,114030.0,0.003]
[1757586052190,1.37583368,114040.0,114030.0,0.08172614]
[1757586052390,1.37583368,114040.0,114030.0,0.003]
[1757586052890,1.37583368,114040.0,114030.0,0.11330514]
[1757586053092,1.37583368,114040.0,114030.0,0.19203606]
[1757586053287,1.37583368,114040.0,114030.0,0.08173092]
[1757586056096,1.37583368,114040.0,114030.0,0.11330514]
[1757586056897,1.37583368,114040.0,114030.0,0.11230514]
[1757586057098,1.37583368,114040.0,114030.0,0.19107043]
[1757586057299,1.37583368,114040.0,114030.0,0.08076529]
[1757586057598,1.37583368,114040.0,114030.0,0.002]
[1757586060100,1.37583368,114040.0,114030.0,0.08079783]
[1757586061308,1.37583368,114040.0,114030.0,0.002]
[1757586061799,1.37583368,114040.0,114030.0,0.11230514]
[1757586063003,1.37583368,114040.0,114030.0,0.002]
[1757586063805,1.37583368,114040.0,114030.0,0.11230514]
[1757586064700,1.37583368,114040.0,114030.0,0.002]
[1757586065511,1.37583368,114040.0,114030.0,0.08086805]
[1757586065809,1.37583368,114040.0,114030.0,0.002]
[1757586066709,1.37583368,114040.0,114030.0,0.11230514]
[1757586069213,1.37583368,114040.0,114030.0,0.002]
[1757586069716,1.1931,114040.0,114030.0,0.002]
[1757586069916,1.37583368,114040.0,114030.0,0.08087625]
[1757586070110,1.37583368,114040.0,114030.0,0.002]
[1757586070808,1.1931,114040.0,114030.0,0.002]
[1757586071008,1.37583368,114040.0,114030.0,0.002]
[1757586071720,1.1931,114040.0,114030.0,0.002]
[1757586071917,0.39698,114040.0,114030.0,0.002]
[1757586072110,0.57971368,114040.0,114030.0,0.002]
[1757586072410,1.37627368,114040.0,114030.0,0.11230514]
[1757586072716,1.28490684,114040.0,114030.0,0.11230514]
[1757586072917,0.48834684,114040.0,114030.0,0.11230514]
[1757586073124,1.28490684,114040.0,114030.0,0.002]
[1757586073717,1.28498684,114040.0,114030.0,0.002]
[1757586075117,1.37635368,114040.0,114030.0,0.002]
[1757586076625,1.37635368,114040.0,114030.0,0.08085447]
[1757586077012,0.57971368,114040.0,114030.0,0.08085447]
[1757586077323,1.28494684,114040.0,114030.0,0.08085447]
[1757586077716,1.28494684,114040.0,114030.0,0.002]
[1757586078921,1.19358,114040.0,114030.0,0.002]
[1757586079221,1.28494684,114040.0,114030.0,0.002]
[1757586081107,1.19358,114040.0,114030.0,0.11230514]
[1757586081311,1.28494684,114040.0,114030.0,0.11230514]
[1757586086316,1.46773432,114040.0,114030.0,0.2493823]
[1757586086512,1.46899432,114040.0,114030.0,0.2493823]
[1757586090314,1.46899432,114040.0,114030.0,0.13907716]
[1757586091828,1.82979432,114040.0,114030.0,0.13907716]
[1757586092125,1.82979432,114040.0,114030.0,0.002]
[1757586093429,1.82979432,114040.0,114030.0,0.11230514]
[1757586098731,1.82979432,114040.0,114030.0,0.002]
[1757586101531,1.82979432,114040.0,114030.0,0.11230514]
[1757586103137,1.82979432,114040.0,114030.0,0.002]
[1757586104939,1.55564,114040.0,114030.0,0.002]
[1757586105235,1.82979432,114040.0,114030.0,0.002]
[1757586105935,1.82979432,114040.0,114030.0,0.11230514]
[1757586106738,1.82979432,114040.0,114030.0,0.002]
[1757586107538,1.55564,114040.0,114030.0,0.002]
[1757586107736,1.82979432,114040.0,114030.0,0.002]
[1757586108838,1.82979432,114040.0,114030.0,0.11230514]
[1757586109634,1.55564,114040.0,114030.0,0.11230514]
[1757586109841,1.82979432,114040.0,114030.0,0.11230514]
[1757586110530,1.82979432,114040.0,114030.0,0.002]
[1757586111737,1.55564,114040.0,114030.0,0.002]
[1757586111939,1.5554,114040.0,114030.0,0.002]
[1757586112138,1.82955432,114040.0,114030.0,0.002]
[1757586112542,1.5554,114040.0,114030.0,0.002]
[1757586112742,1.82955432,114040.0,114030.0,0.11230514]
[1757586113541,0.75904,114040.0,114030.0,0.11230514]
[1757586113746,1.83003432,114040.0,114030.0,0.11230514]
[1757586114040,1.83003432,114040.0,114030.0,0.2493823]
[1757586114540,1.83003432,114040.0,114030.0,0.13907716]
[1757586115441,1.03319432,114040.0,114030.0,0.13907716]
[1757586115642,1.83023432,114040.0,114030.0,0.13907716]
[1757586117240,1.83023432,114040.0,114030.0,0.002]
[1757586119442,1.83023432,114040.0,114030.0,0.11230514]
[1757586120039,1.83023432,114040.0,114030.0,0.002]
[1757586121247,1.55608,114040.0,114030.0,0.002]
[1757586121438,1.83023432,114040.0,114030.0,0.002]
[1757586121643,1.83023432,114040.0,114030.0,0.11230514]
[1757586123338,1.83023432,114040.0,114030.0,0.002]
[1757586124949,1.83023432,114040.0,114030.0,0.11230514]
[1757586126350,1.83023432,114040.0,114030.0,0.002]
[1757586127148,1.83023432,114040.0,114030.0,0.11230514]
[1757586128948,1.83023432,114040.0,114030.0,0.002]
[1757586130651,1.83023432,114040.0,114030.0,0.11230514]
[1757586131045,1.83023432,114040.0,114030.0,0.002]
[1757586134150,1.83023432,114040.0,114030.0,0.11230514]
[1757586137356,1.55608,114040.0,114030.0,0.11230514]
[1757586137556,1.83023432,114040.0,114030.0,0.11230514]
[1757586139250,1.55608,114040.0,114030.0,0.11230514]
[1757586139451,1.83023432,114040.0,114030.0,0.11230514]
[1757586141864,1.55608,114040.0,114030.0,0.11230514]
[1757586142164,1.83023432,114040.0,114030.0,0.11230514]
[1757586143154,1.82975432,114040.0,114030.0,0.11230514]
[1757586143962,1.03319432,114040.0,114030.0,0.11230514]
[1757586144159,1.82963432,114040.0,114030.0,0.2493823]
[1757586144360,1.82963432,114040.0,114030.0,0.11230514]
[1757586144659,1.55548,114040.0,114030.0,0.11230514]
[1757586144860,1.82963432,114040.0,114030.0,0.11230514]
[1757586145162,1.55548,114040.0,114030.0,0.002]
[1757586145360,1.82963432,114040.0,114030.0,0.002]
[1757586146754,1.96671148,114040.0,114030.0,0.002]
[1757586146955,1.82963432,114040.0,114030.0,0.002]
[1757586147154,1.82963432,114040.0,114030.0,0.11230514]
[1757586147561,1.82963432,114040.0,114030.0,0.002]
[1757586148364,1.73829398,114040.0,114030.0,0.002]
[1757586150063,1.73829398,114040.0,114030.0,0.11230514]
[1757586150659,1.73829398,114040.0,114030.0,0.002]
[1757586152066,1.73829398,114040.0,114030.0,0.11230514]
[1757586153763,2.07970097,114040.0,114030.0,0.00730514]
[1757586153958,0.03393,114010.0,114000.0,0.1109495]
[1757586154162,1.28101165,114010.0,114000.0,0.02326]
[1757586154666,1.35021989,114010.0,114000.0,0.02326]
[1757586155658,1.35121989,114010.0,114000.0,0.02926]
[1757586156759,1.35994788,114010.0,114000.0,0.02926]
[1757586156965,1.36094788,114010.0,114000.0,0.03226]
[1757586161862,1.36094788,114010.0,114000.0,0.14251776]
[1757586163562,1.26954089,114010.0,114000.0,0.009]
[1757586163764,1.36094788,114010.0,114000.0,0.009]
[1757586164068,1.45235487,114010.0,114000.0,0.009]
[1757586164368,1.36094788,114010.0,114000.0,0.009]
[1757586175673,1.36102788,114010.0,114000.0,0.03119]
[1757586180484,1.26962089,114010.0,114000.0,0.03119]
[1757586180681,1.36102788,114010.0,114000.0,0.03119]
[1757586182283,1.26962089,114010.0,114000.0,0.03119]
[1757586182578,1.36102788,114010.0,114000.0,0.009]
[1757586184081,1.36102788,114010.0,114000.0,0.11925776]
[1757586185682,1.36102788,114010.0,114000.0,0.03119]
[1757586186577,1.26962089,114010.0,114000.0,0.03119]
[1757586187083,1.36102788,114010.0,114000.0,0.03119]
[1757586188179,1.36162788,114010.0,114000.0,0.03119]
[1757586192789,1.36162788,114010.0,114000.0,0.009]
[1757586192988,1.27022089,114010.0,114000.0,0.03119]
[1757586193378,1.36162788,114010.0,114000.0,0.03119]
[1757586193991,1.36134788,114010.0,114000.0,0.03119]
[1757586194586,1.26994089,114010.0,114000.0,0.03119]
[1757586194890,1.36134788,114010.0,114000.0,0.03119]
[1757586198090,1.36134788,114010.0,114000.0,0.009]
[1757586201394,1.00054788,114010.0,114000.0,0.009]
[1757586201588,1.72214788,114010.0,114000.0,0.009]
[1757586203994,0.83398089,114010.0,114000.0,0.03095]
[1757586204195,1.63046089,114010.0,114000.0,0.03095]
[1757586204400,1.72186788,114010.0,114000.0,0.12235699]
[1757586204584,1.63046089,114010.0,114000.0,0.12235699]
[1757586204886,1.72186788,114010.0,114000.0,0.14120776]
[1757586205286,1.63046089,114010.0,114000.0,0.14120776]
[1757586205499,1.72186788,114010.0,114000.0,0.14120776]
[1757586206892,1.72186788,114010.0,114000.0,0.03095]
[1757586208195,1.72186788,114010.0,114000.0,0.14120776]
[1757586208496,1.76760926,114010.0,114000.0,0.27835613]
[1757586208889,1.63046089,114010.0,114000.0,0.27835613]
[1757586209096,1.76760926,114010.0,114000.0,0.27835613]
[1757586212900,1.76760926,114010.0,114000.0,0.16809837]
[1757586215313,1.76760926,114010.0,114000.0,0.27835613]
[1757586216505,1.76812926,114010.0,114000.0,0.27835613]
[1757586217703,1.76812926,114010.0,114000.0,0.16809837]
[1757586219507,1.76812926,114010.0,114000.0,0.009]
[1757586219707,1.76812926,114010.0,114000.0,0.14614837]
[1757586220304,1.76812926,114010.0,114000.0,0.009]
[1757586220611,1.76812926,114010.0,114000.0,0.25640613]
[1757586221309,1.76812926,114010.0,114000.0,0.14614837]
[1757586221609,1.76812926,114010.0,114000.0,0.009]
[1757586221810,1.76812926,114010.0,114000.0,0.25640613]
[1757586225710,1.76812926,114010.0,114000.0,0.14614837]
[1757586226712,1.78847169,114010.0,114000.0,0.14614837]
[1757586227711,1.78847169,114010.0,114000.0,0.009]
[1757586228116,1.78847169,114010.0,114000.0,0.14614837]
[1757586228614,1.78847169,114010.0,114000.0,0.25640613]
[1757586229814,1.78847169,114010.0,114000.0,0.14614837]
[1757586231321,1.78847169,114010.0,114000.0,0.25640613]
[1757586232612,1.78847169,114010.0,114000.0,0.27835613]
[1757586234523,1.78847169,114010.0,114000.0,0.14120776]
[1757586234821,1.78847169,114010.0,114000.0,0.11925776]
[1757586235023,1.78847169,114010.0,114000.0,0.25640613]
[1757586235922,1.78847169,114010.0,114000.0,0.11925776]
[1757586236119,1.78847169,114010.0,114000.0,0.25640613]
[1757586238023,1.78799169,114010.0,114000.0,0.25640613]
[1757586238628,1.78799169,114010.0,114000.0,0.009]
[1757586238816,1.78799169,114010.0,114000.0,0.14614837]
[1757586239417,1.78799169,114010.0,114000.0,0.009]
[1757586239817,1.78799169,114010.0,114000.0,0.14614837]
[1757586241517,1.78799169,114010.0,114000.0,0.25640613]
[1757586242727,1.78799169,114010.0,114000.0,0.11925776]
[1757586243229,1.78799169,114010.0,114000.0,0.009]
[1757586244625,1.78799169,114010.0,114000.0,0.11925776]
[1757586245031,1.78799169,114010.0,114000.0,0.009]
[1757586246236,1.78799169,114010.0,114000.0,0.11925776]
[1757586247034,1.78799169,114010.0,114000.0,0.009]
[1757586247534,0.99147169,114010.0,114000.0,0.14614837]
[1757586247833,1.78799169,114010.0,114000.0,0.14614837]
[1757586248030,1.78799169,114010.0,114000.0,0.27838613]
[1757586248535,1.78799169,114010.0,114000.0,0.16812837]
[1757586250540,1.78799169,114010.0,114000.0,0.27838613]
[1757586251431,0.99147169,114010.0,114000.0,0.27838613]
[1757586251736,1.78799169,114010.0,114000.0,0.27838613]
[1757586251934,1.78799169,114010.0,114000.0,0.16812837]
[1757586252438,1.78799169,114010.0,114000.0,0.27838613]
[1757586253441,1.78799169,114010.0,114000.0,0.14123776]
[1757586253739,1.65084332,114010.0,114000.0,0.27838613]
[1757586253930,1.78799169,114010.0,114000.0,0.16812837]
[1757586254131,1.78799169,114010.0,114000.0,0.14614837]
[1757586254537,1.78799169,114010.0,114000.0,0.16812837]
[1757586256244,1.78799169,114010.0,114000.0,0.14614837]
[1757586256744,1.78799169,114010.0,114000.0,0.25640613]
[1757586258740,1.78799169,114010.0,114000.0,0.11925776]
[1757586258940,1.78799169,114010.0,114000.0,0.25640613]
[1757586259134,1.78799169,114010.0,114000.0,0.11925776]
[1757586259335,1.78799169,114010.0,114000.0,0.25640613]
[1757586262442,1.78799169,114010.0,114000.0,0.11925776]
[1757586262641,1.78799169,114010.0,114000.0,0.25640613]
[1757586263542,1.78799169,114010.0,114000.0,0.14614837]
[1757586263742,1.78799169,114010.0,114000.0,0.009]
[1757586263941,1.78799169,114010.0,114000.0,0.25640613]
[1757586264936,1.78799169,114010.0,114000.0,0.11925776]
[1757586265138,1.78799169,114010.0,114000.0,0.009]
[1757586265545,1.78799169,114010.0,114000.0,0.11925776]
[1757586268047,1.78799169,114010.0,114000.0,0.009]
[1757586270449,1.74228398,114010.0,114000.0,0.009]
[1757586274853,1.74228398,114010.0,114000.0,0.11925776]
[1757586275554,1.74228398,114010.0,114000.0,0.009]
[1757586275958,1.83372464,114010.0,114000.0,0.009]
[1757586280858,1.81338221,114010.0,114000.0,0.009]
[1757586289071,1.01686221,114010.0,114000.0,0.009]
[1757586289268,1.81326221,114010.0,114000.0,0.009]
[1757586289469,1.72182155,114010.0,114000.0,0.009]
[1757586293674,0.92542155,114010.0,114000.0,0.009]
[1757586293972,1.72182155,114010.0,114000.0,0.009]
[1757586294572,0.74327466,114010.0,114000.0,0.60731132]
[1757586294768,0.3628,114010.0,114000.0,1.17644818]
[1757586294968,0.3628,114010.0,114000.0,1.19526528]
[1757586296071,0.3628,114010.0,114000.0,1.01238396]
[1757586296273,0.3628,114010.0,114000.0,1.19526528]
[1757586296473,0.38455,114010.0,114000.0,0.94526528]
[1757586300172,0.38455,114010.0,114000.0,1.19526528]
[1757586300373,0.48925066,114010.0,114000.0,0.76238396]
[1757586300579,1.28557066,114010.0,114000.0,0.84070462]
[1757586300775,1.19413,114010.0,114000.0,0.84070462]
[1757586302681,1.19413,114010.0,114000.0,0.74926396]
[1757586302979,1.19413,114010.0,114000.0,0.84070462]
[1757586303182,1.19413,114010.0,114000.0,0.74926396]
[1757586303482,1.19413,114010.0,114000.0,0.84070462]
[1757586304580,1.19413,114010.0,114000.0,0.73044686]
[1757586304980,1.19413,114010.0,114000.0,0.84049297]
[1757586306684,1.19413,114010.0,114000.0,0.73044686]
[1757586306888,1.89637066,114010.0,114000.0,0.03131]
[1757586307182,1.89637066,114010.0,114000.0,0.009]
[1757586308572,1.10005066,114010.0,114000.0,0.03131]
[1757586308976,1.89629066,114010.0,114000.0,0.12275066]
[1757586309887,1.89629066,114010.0,114000.0,0.03131]
[1757586314692,1.89629066,114010.0,114000.0,0.12275066]
[1757586314693,1.10005066,114010.0,114000.0,0.12275066]
[1757586314989,1.89629066,114010.0,114000.0,0.12275066]
[1757586315383,0.75861,114010.0,114000.0,0.21044696]
[1757586315586,1.55485,114010.0,114000.0,0.56500762]
[1757586315779,0.74535,114010.0,114000.0,0.70500762]
[1757586316090,1.54159,114010.0,114000.0,0.70500762]
[1757586316286,1.54159,114010.0,114000.0,0.81505373]
[1757586316687,1.54159,114010.0,114000.0,0.70500762]
[1757586317386,1.54159,114010.0,114000.0,0.81505373]
[1757586317591,1.54159,114010.0,114000.0,0.67505373]
[1757586323986,1.54159,114010.0,114000.0,0.49217241]
[1757586324186,1.54159,114010.0,114000.0,0.67505373]
[1757586325298,1.54159,114010.0,114000.0,0.49217241]
[1757586325490,1.54159,114010.0,114000.0,0.67505373]
[1757586328391,1.54159,114010.0,114000.0,0.49217241]
[1757586328593,1.54159,114010.0,114000.0,0.67505373]
[1757586329496,1.54159,114010.0,114000.0,0.56500762]
[1757586330400,1.54159,114010.0,114000.0,0.67525976]
[1757586332400,1.55427,114010.0,114000.0,0.76661208]
[1757586333799,1.55427,114010.0,114000.0,0.65635994]
[1757586334799,1.55427,114010.0,114000.0,0.76661084]
[1757586335691,1.55427,114010.0,114000.0,0.65635994]
[1757586336397,1.55427,114010.0,114000.0,0.76661084]
[1757586336898,0.83267,114010.0,114000.0,0.76661084]
[1757586337099,1.19347,114010.0,114000.0,0.76661084]
[1757586337396,1.19347,114010.0,114000.0,0.65635994]
[1757586338201,1.19347,114010.0,114000.0,0.76662806]
[1757586339303,1.19347,114010.0,114000.0,0.51662806]
[1757586339505,1.19347,114010.0,114000.0,0.40635994]
[1757586340107,1.19347,114010.0,114000.0,0.51663571]
[1757586345311,1.19347,114010.0,114000.0,0.40635994]
[1757586346409,1.19347,114010.0,114000.0,0.51670219]
[1757586347308,1.19347,114010.0,114000.0,0.51670217]
[1757586347608,0.39723,114010.0,114000.0,0.51670217]
[1757586347797,1.19339,114010.0,114000.0,0.51670217]
[1757586351111,1.19339,114010.0,114000.0,0.40635994]
[1757586351709,1.19339,114010.0,114000.0,0.51670217]
[1757586352110,1.19339,114010.0,114000.0,0.40635994]
[1757586355507,1.19339,114010.0,114000.0,0.52635994]
[1757586357323,1.19339,114010.0,114000.0,0.63670321]
[1757586357620,1.19339,114010.0,114000.0,0.52635994]
[1757586358722,1.71762364,114010.0,114000.0,0.009]
[1757586359019,1.71762364,114010.0,113980.0,0.27041836]
[1757586359020,0.0357,113990.0,113980.0,0.27041836]
[1757586359217,1.69053682,113990.0,113980.0,0.27041836]
[1757586359404,1.69053682,113990.0,113980.0,0.13330154]
[1757586359610,1.69053682,113990.0,113980.0,0.16006682]
[1757586360814,1.69153682,113990.0,113980.0,0.16306682]
[1757586361022,2.07865364,113990.0,113980.0,0.003]
[1757586361819,2.07965364,113990.0,113980.0,0.003]
[1757586362623,1.94253682,113990.0,113980.0,0.003]
[1757586364922,1.94257682,113990.0,113980.0,0.003]
[1757586365323,1.80546,113990.0,113980.0,0.003]
[1757586365627,1.94257682,113990.0,113980.0,0.003]
[1757586368827,2.07969364,113990.0,113980.0,0.003]
[1757586371323,1.28353364,113990.0,113980.0,0.003]
[1757586371527,2.07973364,113990.0,113980.0,0.003]
[1757586373226,0.0357,113960.0,113950.0,0.27041836]
[1757586373431,1.32985682,113960.0,113950.0,0.58041836]
[1757586373631,1.32985682,113960.0,113950.0,0.47006682]
[1757586373930,0.3965,113960.0,113950.0,0.47006682]
[1757586374130,1.26423824,113960.0,113950.0,0.55780152]
[1757586375135,1.26623824,113960.0,113950.0,0.55780152]
[1757586376230,1.40335506,113960.0,113950.0,0.55880152]
[1757586378235,1.40339506,113960.0,113950.0,0.55880152]
[1757586379134,0.46999824,113960.0,113950.0,0.55880152]
[1757586379336,1.40339506,113960.0,113950.0,0.55880152]
[1757586380538,0.60711506,113960.0,113950.0,0.4216847]
[1757586380740,1.40339506,113960.0,113950.0,0.55880152]
[1757586382642,0.60711506,113960.0,113950.0,0.55880152]
[1757586382940,1.40339506,113960.0,113950.0,0.55880152]
[1757586383729,0.60711506,113960.0,113950.0,0.55880152]
[1757586383933,1.40343506,113960.0,113950.0,0.55880152]
[1757586387143,1.26631824,113960.0,113950.0,0.55880152]
[1757586387343,1.40343506,113960.0,113950.0,0.55880152]
[1757586387937,1.26631824,113960.0,113950.0,0.55880152]
[1757586388136,1.40343506,113960.0,113950.0,0.55880152]
[1757586388544,1.04263506,113960.0,113950.0,0.55880152]
[1757586388747,1.40343506,113960.0,113950.0,0.55880152]
[1757586390146,1.26631824,113960.0,113950.0,0.55880152]
[1757586390346,1.40343506,113960.0,113950.0,0.55880152]
[1757586390544,1.40343506,113960.0,113950.0,0.66915306]
[1757586390844,1.40343506,113960.0,113950.0,0.55880152]
[1757586392347,1.26631824,113960.0,113950.0,0.51318235]
[1757586398355,1.35781589,113960.0,113950.0,0.51318235]
[1757586399352,1.35781589,113960.0,113950.0,0.62353389]
[1757586399755,1.35781589,113960.0,113950.0,0.51318235]
[1757586400551,1.35781589,113960.0,113950.0,0.62353389]
[1757586403855,1.26631824,113960.0,113950.0,0.62353389]
[1757586404062,1.35781589,113960.0,113950.0,0.62353389]
[1757586404455,1.35781589,113960.0,113950.0,0.53203624]
[1757586404655,1.35781589,113960.0,113950.0,0.62353389]
[1757586405459,1.35781589,113960.0,113950.0,0.51318235]
[1757586405758,1.35781589,113960.0,113950.0,0.62365969]
[1757586405953,1.26631824,113960.0,113950.0,0.62365969]
[1757586406257,1.35781589,113960.0,113950.0,0.62365969]
[1757586406555,1.26631824,113960.0,113950.0,0.62365969]
[1757586406758,1.35781589,113960.0,113950.0,0.62365969]
[1757586408557,1.35781589,113960.0,113950.0,0.53216204]
[1757586408762,1.35781589,113960.0,113950.0,0.62365969]
[1757586410369,1.35781589,113960.0,113950.0,0.51318235]
[1757586413471,1.34355383,113960.0,113950.0,0.51318235]
[1757586413673,1.35659383,113960.0,113950.0,0.62368181]
[1757586413972,1.35659383,113960.0,113950.0,0.51318235]
[1757586415878,1.35659383,113960.0,113950.0,0.57931794]
[1757586416172,1.35659383,113960.0,113950.0,0.58308089]
[1757586416372,1.35659383,113960.0,113950.0,0.49158324]
[1757586416572,1.44809148,113960.0,113950.0,0.18158324]
[1757586416781,1.35659383,113960.0,113950.0,0.13446]
[1757586417166,1.44809148,113960.0,113950.0,0.13446]
[1757586417671,1.78958913,113960.0,113950.0,0.11151]
[1757586418069,1.69809148,113960.0,113950.0,0.001]
[1757586418876,0.90177148,113960.0,113950.0,0.001]
[1757586419076,1.69797148,113960.0,113950.0,0.001]
[1757586419273,1.69797148,113960.0,113950.0,0.02413]
[1757586419472,0.90177148,113960.0,113950.0,0.001]
[1757586419771,1.69797148,113960.0,113950.0,0.001]
[1757586420378,0.90177148,113960.0,113950.0,0.001]
[1757586420579,1.35647383,113960.0,113950.0,0.11562765]
[1757586420774,1.35647383,113960.0,113950.0,0.02413]
[1757586429985,1.26497618,113960.0,113950.0,0.02413]
[1757586430186,1.35647383,113960.0,113950.0,0.02413]
[1757586432475,0.46877618,113960.0,113950.0,0.20336135]
[1757586432681,0.45573618,113960.0,113950.0,0.59677135]
[1757586432880,0.45573618,113960.0,113950.0,0.57728135]
[1757586432881,1.25197618,113960.0,113950.0,0.57728135]
[1757586433085,1.25197618,113960.0,113950.0,0.68728135]
[1757586433781,0.45573618,113960.0,113950.0,0.68728135]
[1757586433981,1.25197618,113960.0,113950.0,0.778779]
[1757586434290,1.15904,113960.0,113950.0,1.218779]
[1757586434489,1.15904,113960.0,113950.0,1.227549]
[1757586436489,0.3628,113960.0,113950.0,1.227549]
[1757586438490,0.3628,113960.0,113950.0,1.117039]
[1757586438690,0.002,113960.0,113950.0,1.117039]
[1757586440092,0.002,113960.0,113950.0,1.22720983]
[1757586442492,0.002,113960.0,113950.0,1.117039]
[1757586443195,0.002,113960.0,113950.0,1.22718963]
[1757586447594,0.002,113960.0,113950.0,1.117039]
[1757586448291,0.002,113960.0,113950.0,1.22715276]
[1757586448687,0.002,113960.0,113950.0,0.97715276]
[1757586448896,0.002,113960.0,113950.0,2.02319276]
[1757586449090,0.3608,113970.0,113950.0,2.0008127]
[1757586449392,0.3608,113970.0,113960.0,0.41755492]
[1757586449594,0.3608,113970.0,113960.0,0.66755492]
[1757586449993,0.38392,113970.0,113960.0,0.5574813]
[1757586450389,0.38392,113970.0,113960.0,0.3074813]
[1757586450596,0.38392,113970.0,113960.0,0.4274813]
[1757586451294,0.02312,113970.0,113960.0,0.53752679]
[1757586451489,0.02412,113970.0,113960.0,0.53752679]
[1757586451690,0.02512,113970.0,113960.0,0.53752679]
[1757586452094,0.02512,113970.0,113960.0,0.94852679]
[1757586452393,0.002,113970.0,113960.0,0.94852679]
[1757586452594,0.002,113970.0,113960.0,0.94952679]
[1757586452996,0.002,113970.0,113960.0,0.8394813]
[1757586453197,0.002,113970.0,113960.0,1.18097895]
[1757586453697,0.002,113970.0,113960.0,1.18974895]
[1757586454397,0.002,113970.0,113960.0,1.32672019]
[1757586454598,0.002,113970.0,113960.0,2.12268019]
[1757586454984,0.002,113970.0,113960.0,1.32672019]
[1757586455190,0.002,113970.0,113960.0,2.12268019]
[1757586456196,0.002,113970.0,113960.0,2.48348019]
[1757586456895,0.002,113970.0,113960.0,1.68752019]
[1757586457100,0.002,113970.0,113960.0,2.48344019]
[1757586457497,0.3608,113990.0,113980.0,0.1244706]
[1757586457700,0.3608,113990.0,113980.0,0.96878006]
[1757586458688,0.3628,113990.0,113980.0,0.96978006]
[1757586458992,0.38892,113990.0,113980.0,0.96978006]
[1757586459699,0.02812,113990.0,113980.0,0.96978006]
[1757586459895,0.02812,113990.0,113980.0,1.07979074]
[1757586460402,0.02812,113990.0,113980.0,0.80548128]
[1757586460701,0.02812,113990.0,113980.0,1.07979074]
[1757586469008,0.02812,113990.0,113980.0,0.96978006]
[1757586470200,0.02812,113990.0,113980.0,0.97855006]
[1757586474113,0.02812,113990.0,113980.0,0.7042406]
[1757586474411,0.02812,113990.0,113980.0,0.97855006]
[1757586476209,0.02812,113990.0,113980.0,1.08856074]
[1757586477111,0.02812,113990.0,113980.0,0.97855006]
[1757586478017,0.02812,113990.0,113980.0,0.7042406]
[1757586478210,0.38892,113990.0,113980.0,0.61653]
[1757586478409,0.38892,113990.0,113980.0,0.89083946]
[1757586479217,0.38892,113990.0,113980.0,1.00085014]
[1757586479915,0.38892,113990.0,113980.0,1.08856104]
[1757586480316,0.38892,113990.0,113980.0,0.81425158]
[1757586480518,0.38892,113990.0,113980.0,1.08856104]
[1757586481210,0.38892,113990.0,113980.0,1.00085014]
[1757586482614,0.38892,113990.0,113980.0,1.08856104]
[1757586484312,0.38892,113990.0,113980.0,0.89083946]
[1757586484819,0.38892,113990.0,113980.0,0.97855036]
[1757586485319,0.38892,113990.0,113980.0,1.08886059]
[1757586487920,0.40233,113990.0,113980.0,0.81455113]